bitfinex-derivatives/quotes_SOLF0:USTF0_20250803
["timestamp","ask_amount","ask_price","bid_price","bid_amount"]
[1754241202751,9.5715,162.57,162.53,3.33]
[1754241202752,3.42,162.56,162.53,3.33]
[1754241203254,3.42,162.55,162.51,6.17950071]
[1754241203447,3.42,162.58,162.51,9.50950071]
[1754241203947,3.42,162.55,162.52,3.33]
[1754241204341,3.42,162.55,162.5,3.33]
[1754241204545,3.42,162.58,162.5,3.33]
[1754241204952,6.1512,162.57,162.51,6.1531]
[1754241205149,3.42,162.56,162.53,3.33]
[1754241205747,3.42,162.56,162.51,3.33]
[1754241206148,3.42,162.56,162.52,3.33]
[1754241206660,6.1516,162.56,162.51,6.1534]
[1754241206952,3.42,162.54,162.53,3.33]
[1754241207952,3.42,162.55,162.52,3.33]
[1754241209453,3.42,162.55,162.53,3.33]
[1754241209658,3.42,162.55,162.54,3.33]
[1754241211259,6.17950071,162.6,162.51,6.17950071]
[1754241211454,3.42,162.59,162.56,3.33]
[1754241212059,3.42,162.58,162.57,3.33]
[1754241213258,3.42,162.59,162.58,3.33]
[1754241213853,3.42,162.61,162.58,3.33]
[1754241216161,3.42,162.61,162.57,6.1511]
[1754241216465,3.42,162.61,162.58,6.1507]
[1754241216657,3.42,162.61,162.6,3.33]
[1754241217564,3.42,162.66,162.6,3.33]
[1754241217758,3.42,162.66,162.62,3.33]
[1754241217959,6.17950071,162.69,162.63,3.33]
[1754241218156,3.42,162.65,162.63,3.33]
[1754241218355,3.42,162.65,162.64,3.33]
[1754241218558,3.42,162.64,162.63,3.33]
[1754241223764,3.42,162.64,162.61,15.77900071]
[1754241223966,3.24,162.63,162.62,3.45]
[1754241226370,3.24,162.66,162.57,6.17950071]
[1754241226570,3.24,162.64,162.57,9.62950071]
[1754241227059,6.1498,162.61,162.57,9.62950071]
[1754241227266,3.24,162.6,162.57,9.62950071]
[1754241228770,6.1498,162.61,162.57,12.33060071]
[1754241228975,3.19,162.59,162.58,3.35]
[1754241229372,3.24,162.61,162.57,12.33060071]
[1754241229571,6.1494,162.62,162.57,12.33060071]
[1754241229773,3.24,162.59,162.57,12.33060071]
[1754241230977,3.24,162.59,162.58,3.45]
[1754241234276,3.24,162.61,162.59,3.45]
[1754241234476,3.24,162.61,162.58,9.6008]
[1754241234774,3.24,162.61,162.58,3.45]
[1754241236472,3.24,162.61,162.58,9.6007]
[1754241236676,3.24,162.61,162.59,3.45]
[1754241236881,3.24,162.6,162.59,3.45]
[1754241237076,3.24,162.62,162.6,3.45]
[1754241237278,6.149,162.63,162.6,3.45]
[1754241237576,6.92274439,162.71,162.61,6.17950071]
[1754241237772,6.92274439,162.71,162.57,93.30242258]
[1754241237973,6.1483,162.65,162.63,3.45]
[1754241238172,3.24,162.64,162.61,3.45]
[1754241238876,3.24,162.63,162.62,3.45]
[1754241239079,3.24,162.63,162.61,3.45]
[1754241239481,3.24,162.66,162.61,6.1496]
[1754241239682,3.24,162.65,162.62,6.17950071]
[1754241239878,3.24,162.67,162.63,3.45]
[1754241240089,3.24,162.66,162.63,9.62950071]
[1754241240278,3.24,162.66,162.65,3.45]
[1754241242377,6.17950071,162.73,162.63,6.17950071]
[1754241242378,3.24,162.65,162.63,6.17950071]
[1754241242879,419.92274439,162.74,162.65,3.45]
[1754241242880,3.24,162.66,162.65,3.45]
[1754241244284,3.14,162.66,162.65,3.45]
[1754241245981,3.14,162.66,162.63,15.77830071]
[1754241246180,3.24,162.66,162.63,6.17950071]
[1754241246487,3.24,162.65,162.59,6.17950071]
[1754241246689,3.24,162.65,162.57,6.17950071]
[1754241246883,6.17950071,162.64,162.56,3.45]
[1754241247090,3.24,162.63,162.56,3.45]
[1754241247286,6.1497,162.61,162.56,9.6012]
[1754241247585,3.24,162.6,162.57,3.45]
[1754241247885,3.24,162.59,162.58,3.45]
[1754241248686,6.17950071,162.66,162.58,3.45]
[1754241248988,3.24,162.65,162.58,3.45]
[1754241249591,3.24,162.64,162.56,9.62950071]
[1754241249981,3.24,162.64,162.57,3.45]
[1754241250183,6.1493,162.62,162.57,6.1508]
[1754241250388,3.24,162.61,162.58,3.45]
[1754241250693,6.1497,162.61,162.57,6.1508]
[1754241250884,3.24,162.6,162.57,9.6008]
[1754241251690,9.3894,162.62,162.59,3.45]
[1754241251893,9.3894,162.62,162.58,6.1506]
[1754241251894,3.24,162.64,162.6,3.45]
[1754241252085,3.24,162.64,162.59,3.45]
[1754241252292,6.1488,162.64,162.59,6.1502]
[1754241252496,3.24,162.63,162.6,3.45]
[1754241253193,9.3889,162.63,162.6,3.45]
[1754241253393,6.1489,162.63,162.6,3.45]
[1754241253703,3.24,162.61,162.6,9.6]
[1754241253994,3.24,162.61,162.6,3.45]
[1754241255088,3.22,162.6,162.59,3.18]
[1754241257595,3.22,162.6,162.57,12.33060071]
[1754241257794,3.22,162.64,162.57,3.18]
[1754241258190,6.1497,162.61,162.57,9.3311]
[1754241258390,3.22,162.6,162.57,9.3311]
[1754241258797,3.22,162.6,162.57,3.18]
[1754241259099,3.22,162.6,162.57,3.13]
[1754241259490,6.1497,162.61,162.52,6.94301744]
[1754241259491,6.1504,162.59,162.53,6.17950071]
[1754241259695,3.22,162.58,162.53,6.17950071]
[1754241259894,3.22,162.58,162.52,11.25982205]
[1754241260298,3.22,162.58,162.52,6.17950071]
[1754241260496,4.67793876,162.57,162.52,6.17950071]
[1754241260696,4.67809557,162.56,162.52,12.33250071]
[1754241260901,3.22,162.55,162.52,12.33250071]
[1754241261100,3.22,162.55,162.52,15.51250071]
[1754241262203,6.1517,162.56,162.52,12.33250071]
[1754241262501,6.1519,162.55,162.51,9.3333]
[1754241262703,3.22,162.54,162.51,9.3333]
[1754241262999,3.22,162.53,162.52,3.18]
[1754241264400,6.1521,162.55,162.5,12.33320071]
[1754241264602,3.22,162.54,162.51,3.18]
[1754241265106,3.22,162.58,162.52,3.18]
[1754241265307,3.22,162.58,162.52,6.17950071]
[1754241265495,3.22,162.58,162.53,3.18]
[1754241266205,3.22,162.58,162.51,3.18]
[1754241266507,3.22,162.58,162.5,3.18]
[1754241266705,6.17950071,162.59,162.5,9.3335]
[1754241266706,6.1524,162.54,162.5,9.3335]
[1754241266901,3.22,162.53,162.5,9.3335]
[1754241267107,3.22,162.53,162.5,6.1535]
[1754241267308,3.22,162.53,162.51,3.18]
[1754241267803,3.22,162.52,162.51,3.18]
[1754241269418,3.22,162.51,162.5,9.3335]
[1754241270110,3.22,162.52,162.51,9.3334]
[1754241270604,6.17950071,162.59,162.52,6.1528]
[1754241270907,3.22,162.58,162.53,3.18]
[1754241271105,3.22,162.58,162.54,6.1522]
[1754241271302,3.22,162.58,162.55,3.18]
[1754241272009,6.1508,162.58,162.53,6.1526]
[1754241272212,3.22,162.57,162.53,3.18]
[1754241272414,3.22,162.57,162.53,9.3326]
[1754241272599,3.22,162.56,162.53,3.18]
[1754241272804,3.22,162.56,162.52,9.35950071]
[1754241273107,6.17950071,162.62,162.54,9.35950071]
[1754241273412,3.22,162.61,162.55,3.18]
[1754241273608,6.1507,162.59,162.55,3.18]
[1754241273903,3.22,162.58,162.55,3.18]
[1754241274104,3.22,162.57,162.56,3.18]
[1754241274309,3.22,162.57,162.56,3.14]
[1754241275410,6.1504,162.59,162.54,12.33170071]
[1754241275601,3.22,162.56,162.54,12.33170071]
[1754241276408,3.22,162.56,162.55,3.18]
[1754241277210,3.22,162.56,162.52,9.35950071]
[1754241277803,3.22,162.56,162.53,3.18]
[1754241278004,3.22,162.56,162.52,9.35950071]
[1754241278410,3.22,162.56,162.53,3.18]
[1754241280307,3.22,162.56,162.52,6.17950071]
[1754241280512,3.22,162.56,162.52,9.35950071]
[1754241281212,3.22,162.56,162.53,3.18]
[1754241281814,3.22,162.57,162.54,3.18]
[1754241282011,3.22,162.57,162.52,6.17950071]
[1754241282312,9.3706,162.59,162.54,9.3322]
[1754241282510,3.22,162.58,162.55,3.18]
[1754241282905,3.3706,162.59,162.54,6.152]
[1754241283110,3.3706,162.59,162.55,3.18]
[1754241283815,6.17950071,162.6,162.5,3.19]
[1754241284012,6.17950071,162.6,162.52,3.19]
[1754241284205,6.1508,162.59,162.53,6.1526]
[1754241284709,6.1508,162.59,162.55,3.19]
[1754241285109,3.19,162.58,162.55,3.19]
[1754241285308,3.19,162.58,162.56,3.19]
[1754241285613,3.19,162.57,162.56,3.19]
[1754241288222,3.19,162.6,162.57,3.19]
[1754241288419,3.19,162.64,162.6,3.19]
[1754241289110,3.19,162.63,162.6,3.19]
[1754241289513,3.19,162.62,162.6,3.19]
[1754241289715,3.19,162.62,162.59,6.17950071]
[1754241289916,3.19,162.62,162.61,3.19]
[1754241291219,3.19,162.68,162.58,3.19]
[1754241291413,3.19,162.68,162.61,3.19]
[1754241291617,6.1478,162.66,162.61,6.1496]
[1754241291816,3.19,162.65,162.62,3.19]
[1754241292016,4.75118815,162.64,162.62,3.19]
[1754241292216,3.19,162.63,162.62,3.19]
[1754241292823,3.19,162.63,162.59,3.19]
[1754241293024,3.19,162.66,162.59,3.19]
[1754241293216,4.53143109,162.65,162.59,3.19]
[1754241293520,3.19,162.63,162.58,3.19]
[1754241294222,3.19,162.63,162.59,6.1504]
[1754241294417,3.19,162.63,162.61,3.19]
[1754241295217,3.19,162.62,162.61,3.19]
[1754241302136,3.19,162.63,162.61,3.19]
[1754241302428,3.19,162.64,162.61,3.19]
[1754241303034,3.19,162.67,162.62,3.19]
[1754241303228,113.6,162.74,162.52,124.21452616]
[1754241303229,3.19,162.65,162.6,3.19]
[1754241303430,3.19,162.63,162.6,3.19]
[1754241303737,3.19,162.63,162.57,6.17950071]
[1754241304037,3.19,162.63,162.61,3.19]
[1754241304339,3.19,162.62,162.61,3.19]
[1754241304840,6.17950071,162.66,162.61,3.19]
[1754241305039,3.19,162.64,162.61,3.19]
[1754241305434,3.19,162.64,162.62,6.149]
[1754241305633,3.19,162.64,162.63,3.19]
[1754241306036,3.19,162.65,162.62,3.19]
[1754241306329,3.19,162.65,162.63,3.19]
[1754241307732,3.19,162.65,162.62,6.1492]
[1754241307936,3.19,162.66,162.58,6.17950071]
[1754241308137,3.19,162.66,162.59,3.19]
[1754241308341,3.19,162.6,162.56,12.33100071]
[1754241308535,3.19,162.6,162.58,3.19]
[1754241308928,6.1503,162.6,162.58,3.19]
[1754241309134,3.19,162.59,162.57,3.19]
[1754241309538,3.19,162.58,162.57,3.19]
[1754241311742,3.19,162.58,162.55,3.19]
[1754241311941,3.19,162.58,162.53,3.19]
[1754241312137,3.19,162.58,162.54,3.19]
[1754241312441,3.19,162.56,162.55,3.19]
[1754241315443,3.24,162.55,162.51,3.2]
[1754241315941,3.24,162.55,162.49,3.2]
[1754241316342,9.392,162.55,162.51,6.1533]
[1754241316542,3.24,162.54,162.52,3.2]
[1754241317246,3.24,162.54,162.53,3.2]
[1754241318443,9.3923,162.54,162.53,3.2]
[1754241319048,9.3923,162.54,162.53,3.14]
[1754241320047,3.24,162.54,162.53,3.14]
[1754241320548,9.3923,162.54,162.53,3.14]
[1754241322949,3.24,162.54,162.53,3.14]
[1754241324449,6.17950071,162.57,162.53,3.14]
[1754241324450,3.24,162.56,162.53,3.14]
[1754241324648,6.17950071,162.61,162.53,3.14]
[1754241324948,3.24,162.57,162.53,3.14]
[1754241325146,3.24,162.56,162.53,6.1526]
[1754241325453,3.24,162.56,162.54,3.2]
[1754241326453,3.24,162.55,162.53,6.1526]
[1754241326855,3.24,162.55,162.54,3.2]
[1754241327553,3.24,162.56,162.54,3.2]
[1754241328453,3.24,162.55,162.53,6.1526]
[1754241329055,3.24,162.55,162.54,3.2]
[1754241329456,6.1512,162.57,162.52,6.153]
[1754241329655,3.24,162.55,162.52,6.153]
[1754241330259,3.24,162.54,162.53,3.2]
[1754241331358,3.24,162.56,162.54,3.2]
[1754241331855,3.24,162.55,162.51,6.17950071]
[1754241332253,3.24,162.55,162.52,3.2]
[1754241332558,3.24,162.54,162.52,3.2]
[1754241332752,6.1512,162.57,162.52,3.2]
[1754241332958,3.24,162.55,162.54,3.2]
[1754241334258,3.22,162.55,162.52,3.2]
[1754241334449,3.22,162.55,162.53,3.2]
[1754241334656,6.17950071,162.57,162.53,3.2]
[1754241335260,4.5707955,162.56,162.53,3.2]
[1754241335448,6.17950071,162.57,162.53,3.2]
[1754241335654,10.7225955,162.56,162.49,3.2]
[1754241335953,6.1518,162.56,162.51,6.1534]
[1754241336154,3.24,162.55,162.52,3.2]
[1754241336352,3.24,162.54,162.52,3.2]
[1754241336662,3.24,162.54,162.47,3.2]
[1754241336858,3.24,162.52,162.47,3.2]
[1754241337161,3.24,162.52,162.45,3.2]
[1754241337355,4.57170322,162.51,162.45,3.2]
[1754241337553,6.17950071,162.6,162.42,8.28032134]
[1754241337554,6.17950071,162.49,162.42,8.28032134]
[1754241337759,3.24,162.47,162.44,3.2]
[1754241338254,3.24,162.47,162.4,6.17950071]
[1754241338453,3.24,162.47,162.41,3.2]
[1754241339356,3.24,162.46,162.44,3.2]
[1754241341050,3.24,162.45,162.43,6.1562]
[1754241341651,3.24,162.45,162.44,3.2]
[1754241345752,3.24,162.45,162.43,3.45]
[1754241345952,3.24,162.45,162.38,6.17950071]
[1754241346157,3.24,162.45,162.42,3.45]
[1754241346468,9.396,162.45,162.42,3.45]
[1754241346762,3.19,162.44,162.42,3.45]
[1754241347364,3.19,162.44,162.38,6.17950071]
[1754241347365,3.19,162.43,162.41,6.1571]
[1754241347763,3.19,162.47,162.43,6.1564]
[1754241347965,3.19,162.46,162.44,3.45]
[1754241349260,3.19,162.48,162.44,3.45]
[1754241349567,3.19,162.51,162.46,3.45]
[1754241349768,3.19,162.49,162.46,3.45]
[1754241349963,3.19,162.49,162.46,9.6051]
[1754241350159,3.19,162.49,162.47,3.45]
[1754241350362,3.19,162.49,162.48,3.45]
[1754241352059,3.19,162.51,162.49,3.45]
[1754241352261,6.1535,162.51,162.49,3.45]
[1754241352460,3.19,162.5,162.49,3.45]
[1754241352763,3.19,162.53,162.46,9.605]
[1754241352961,3.19,162.53,162.46,3.45]
[1754241353261,3.19,162.53,162.49,3.45]
[1754241353459,6.1535,162.51,162.49,3.45]
[1754241353659,3.19,162.5,162.49,3.45]
[1754241354177,9.3435,162.51,162.49,3.45]
[1754241354474,3.19,162.51,162.49,3.45]
[1754241355068,3.19,162.52,162.5,3.45]
[1754241356074,3.19,162.51,162.42,3.45]
[1754241356279,6.1545,162.49,162.44,3.45]
[1754241356467,3.19,162.48,162.44,9.6057]
[1754241356771,3.19,162.48,162.44,3.45]
[1754241356976,9.3449,162.48,162.44,3.45]
[1754241357275,3.19,162.47,162.44,3.45]
[1754241357474,3.19,162.46,162.44,3.45]
[1754241357871,3.19,162.45,162.42,6.1565]
[1754241358468,3.19,162.45,162.43,3.45]
[1754241359770,6.1546,162.48,162.42,6.1565]
[1754241359969,3.19,162.46,162.44,3.45]
[1754241360370,6.17950071,162.52,162.43,6.1564]
[1754241360672,3.19,162.51,162.44,3.45]
[1754241361078,6.155,162.47,162.44,3.45]
[1754241361274,3.19,162.46,162.44,3.45]
[1754241361469,6.17950071,162.52,162.42,6.1568]
[1754241361670,3.19,162.46,162.43,3.45]
[1754241361873,3.19,162.45,162.43,3.45]
[1754241362476,3.19,162.49,162.42,3.45]
[1754241362874,6.1556,162.46,162.42,3.45]
[1754241363074,3.19,162.45,162.42,3.45]
[1754241363578,3.19,162.44,162.43,3.45]
[1754241363873,3.19,162.47,162.41,6.1571]
[1754241364073,3.19,162.47,162.41,3.43]
[1754241364574,3.19,162.47,162.4,6.17950071]
[1754241365579,6.1547,162.48,162.42,6.1568]
[1754241365881,3.19,162.46,162.42,6.1568]
[1754241366173,3.19,162.46,162.43,3.45]
[1754241366378,3.19,162.46,162.44,3.45]
[1754241371680,3.19,162.46,162.41,3.45]
[1754241371885,3.19,162.46,162.42,3.45]
[1754241372584,3.19,162.44,162.42,3.45]
[1754241373086,9.3461,162.44,162.42,3.45]
[1754241373385,3.19,162.43,162.42,3.45]
[1754241375179,3.39,162.42,162.4,3.33]
[1754241375786,9.5472,162.41,162.4,3.33]
[1754241376087,3.39,162.41,162.4,3.33]
[1754241378988,3.39,162.41,162.4,3.31]
[1754241379487,6.17950071,162.46,162.4,3.31]
[1754241379689,3.39,162.44,162.4,3.31]
[1754241379882,4.61711722,162.43,162.4,3.31]
[1754241380186,3.39,162.41,162.4,3.31]
[1754241381783,8.01125747,162.41,162.38,3.33]
[1754241382082,3.39,162.39,162.36,3.33]
[1754241382488,6.1584,162.38,162.36,3.33]
[1754241382687,3.39,162.37,162.36,3.33]
[1754241383484,3.39,162.37,162.35,3.33]
[1754241383794,3.39,162.36,162.34,6.1598]
[1754241384279,3.39,162.36,162.35,3.33]
[1754241385088,3.39,162.36,162.32,3.33]
[1754241385491,6.17950071,162.4,162.32,3.33]
[1754241385688,3.39,162.38,162.32,3.33]
[1754241385886,3.39,162.36,162.32,3.33]
[1754241386290,6.1592,162.36,162.32,3.33]
[1754241386593,3.39,162.35,162.32,3.33]
[1754241387293,3.39,162.35,162.33,3.33]
[1754241387488,3.39,162.34,162.32,6.1606]
[1754241387886,6.1585,162.38,162.34,3.33]
[1754241388085,3.39,162.36,162.34,3.33]
[1754241389088,3.39,162.35,162.31,6.17950071]
[1754241389590,3.39,162.34,162.32,6.1605]
[1754241389792,3.39,162.34,162.33,3.33]
[1754241391702,3.39,162.34,162.31,12.34040071]
[1754241391892,6.17950071,162.4,162.32,3.33]
[1754241392096,6.1597,162.35,162.29,1.07208872]
[1754241392297,3.39,162.34,162.31,3.33]
[1754241393190,3.39,162.34,162.3,6.1614]
[1754241393396,3.39,162.34,162.32,3.33]
[1754241393589,6.1599,162.34,162.32,3.33]
[1754241393790,3.39,162.33,162.28,125.82130071]
[1754241393996,3.39,162.33,162.31,3.33]
[1754241394198,9.5506,162.32,162.31,3.33]
[1754241394398,9.5506,162.32,162.28,12.34130071]
[1754241394599,3.39,162.31,162.28,12.34130071]
[1754241394794,3.39,162.31,162.3,3.33]
[1754241397607,3.39,162.31,162.28,12.34130071]
[1754241397797,3.39,162.3,162.29,3.33]
[1754241400098,3.39,162.29,162.27,3.33]
[1754241400303,3.39,162.35,162.27,3.33]
[1754241400907,3.39,162.31,162.28,3.33]
[1754241401107,3.39,162.31,162.27,3.33]
[1754241401511,3.39,162.31,162.25,3.33]
[1754241401712,3.39,162.29,162.25,3.33]
[1754241402112,3.39,162.27,162.25,3.33]
[1754241402404,3.39,162.27,162.24,3.33]
[1754241402610,3.39,162.27,162.25,3.33]
[1754241403712,9.5525,162.27,162.23,6.1639]
[1754241403913,3.3,162.26,162.21,6.17950071]
[1754241404113,3.3,162.26,162.22,3.45]
[1754241404716,3.3,162.29,162.22,3.45]
[1754241405124,3.3,162.25,162.23,3.45]
[1754241405711,6.1633,162.25,162.23,3.45]
[1754241405916,3.3,162.24,162.23,3.45]
[1754241406616,9.4637,162.24,162.23,3.45]
[1754241406806,3.3,162.22,162.18,1.07276623]
[1754241407009,3.3,162.25,162.17,119.71950071]
[1754241407211,6.17950071,162.26,162.17,119.71950071]
[1754241407212,3.3,162.22,162.17,119.71950071]
[1754241407410,3.3,162.22,162.18,3.45]
[1754241407706,3.3,162.2,162.18,3.45]
[1754241407911,3.3,162.2,162.19,3.45]
[1754241408211,6.17950071,162.24,162.13,1.07308048]
[1754241408413,3.3,162.21,162.15,3.45]
[1754241409919,9.4651,162.21,162.16,6.1666]
[1754241410117,6.1651,162.21,162.18,3.45]
[1754241410416,3.3,162.2,162.17,3.45]
[1754241410814,3.3,162.2,162.13,7.25258119]
[1754241411016,3.3,162.2,162.18,3.45]
[1754241411215,6.1652,162.2,162.18,3.45]
[1754241411411,3.3,162.19,162.18,3.45]
[1754241412616,3.3,162.19,162.14,3.45]
[1754241414021,3.3,162.19,162.14,6.1672]
[1754241414221,3.3,162.18,162.15,3.45]
[1754241414925,3.3,162.18,162.16,3.45]
[1754241415521,3.3,162.2,162.17,3.45]
[1754241415916,3.3,162.19,162.17,3.45]
[1754241416415,3.3,162.19,162.18,3.45]
[1754241417625,24.55031349,162.3,162.18,9.6159]
[1754241417921,3.3,162.24,162.19,3.45]
[1754241418812,6.1642,162.23,162.19,3.45]
[1754241419016,3.3,162.21,162.19,3.45]
[1754241420021,3.3,162.22,162.2,3.45]
[1754241421116,3.3,162.24,162.2,3.45]
[1754241421612,6.163,162.26,162.21,6.1648]
[1754241421812,6.163,162.26,162.22,3.45]
[1754241422013,3.3,162.24,162.22,3.45]
[1754241422418,3.3,162.26,162.21,3.45]
[1754241422715,6.1642,162.23,162.21,3.45]
[1754241422920,3.3,162.22,162.21,3.45]
[1754241423719,3.3,162.23,162.21,3.45]
[1754241424123,6.1632,162.26,162.21,3.45]
[1754241425421,6.1626,162.27,162.21,3.45]
[1754241425830,6.1626,162.27,162.22,6.17950071]
[1754241426129,6.1629,162.26,162.24,3.45]
[1754241426314,3.3,162.25,162.24,3.45]
[1754241427421,3.3,162.29,162.24,9.62950071]
[1754241427621,3.3,162.28,162.25,3.45]
[1754241428325,3.3,162.27,162.23,6.17950071]
[1754241428523,3.3,162.27,162.26,3.45]
[1754241428722,3.3,162.26,162.24,3.45]
[1754241428930,3.3,162.25,162.24,3.45]
[1754241430533,3.3,162.32,162.24,3.45]
[1754241430827,6.1619,162.29,162.24,3.45]
[1754241431029,3.3,162.28,162.24,3.45]
[1754241431229,6.1619,162.29,162.24,3.45]
[1754241431528,3.3,162.27,162.24,3.45]
[1754241432525,3.3,162.26,162.24,3.45]
[1754241432725,3.3,162.26,162.23,9.62950071]
[1754241432926,6.1634,162.25,162.22,3.45]
[1754241433124,3.3,162.25,162.22,3.45]
[1754241433823,3.3,162.25,162.2,3.5]
[1754241434128,9.4635,162.25,162.2,3.5]
[1754241434328,3.43,162.24,162.2,3.5]
[1754241434627,3.43,162.23,162.2,3.5]
[1754241435528,3.43,162.23,162.19,6.17950071]
[1754241435529,3.43,162.22,162.21,3.5]
[1754241437528,3.43,162.22,162.16,6.17950071]
[1754241437728,3.43,162.22,162.17,3.5]
[1754241438430,3.43,162.22,162.14,6.17950071]
[1754241438637,3.43,162.22,162.15,3.5]
[1754241439536,3.43,162.18,162.16,3.5]
[1754241439729,3.43,162.18,162.17,3.5]
[1754241443543,3.43,162.18,162.13,3.5]
[1754241443834,3.43,162.22,162.13,3.5]
[1754241444031,19.12192156,162.29,162.11,6.15386348]
[1754241444032,6.17950071,162.24,162.16,3.5]
[1754241444236,6.165,162.21,162.16,3.5]
[1754241444426,3.43,162.2,162.16,3.5]
[1754241444633,3.43,162.19,162.16,3.5]
[1754241446837,3.43,162.2,162.16,3.5]
[1754241447331,3.43,162.19,162.16,3.5]
[1754241448037,3.43,162.18,162.17,3.5]
[1754241450036,3.43,162.22,162.16,3.5]
[1754241450233,3.43,162.2,162.16,3.5]
[1754241450739,6.17950071,162.25,162.17,3.5]
[1754241450940,3.43,162.19,162.18,3.5]
[1754241452540,3.43,162.19,162.15,6.1668]
[1754241452838,3.43,162.18,162.17,3.5]
[1754241455339,3.43,162.18,162.15,3.5]
[1754241455538,3.43,162.18,162.16,3.5]
[1754241457842,3.43,162.18,162.12,3.5]
[1754241458144,6.1675,162.14,162.12,3.5]
[1754241458341,3.43,162.13,162.12,3.5]
[1754241459144,3.43,162.11,162.1,3.5]
[1754241459939,3.43,162.11,162.07,3.5]
[1754241460346,3.43,162.11,162.08,3.5]
[1754241460545,3.43,162.09,162.08,3.5]
[1754241462351,3.43,162.07,162.06,3.5]
[1754241463043,3.43,162.07,162.03,3.5]
[1754241463346,3.43,162.06,162.03,3.5]
[1754241463548,3.43,162.1,162.03,3.5]
[1754241463751,3.43,162.1,162.05,3.22]
[1754241463951,3.43,162.1,162.04,6.17950071]
[1754241464145,3.43,162.1,162.07,3.22]
[1754241464345,3.42,162.09,162.07,3.22]
[1754241464554,6.1689,162.11,162.07,3.22]
[1754241464746,3.42,162.1,162.07,3.22]
[1754241464947,3.42,162.1,162.07,9.3898]
[1754241465151,3.42,162.1,162.07,3.22]
[1754241465347,3.42,162.09,162.07,3.22]
[1754241465546,3.42,162.09,162.02,1.07380894]
[1754241465547,3.42,162.09,162.04,6.17950071]
[1754241465751,3.42,162.09,162.05,3.22]
[1754241466353,3.42,162.09,162.06,3.22]
[1754241466850,3.42,162.12,162.05,3.22]
[1754241467355,6.1685,162.12,162.07,6.1698]
[1754241467555,3.42,162.11,162.07,6.1698]
[1754241467750,6.1685,162.12,162.09,3.22]
[1754241467945,6.17950071,162.16,162.06,6.17950071]
[1754241468147,3.42,162.15,162.07,3.22]
[1754241468551,6.1683,162.12,162.06,6.17950071]